[Event "Elite Hotels Open 2024"]
[Site "Elite Stadshotellet, Kungsgatan 6, Vaxjo, Sweden"]
[Date "2024.02.10"]
[Round "5.15"]
[White "Karde, Douglas"]
[Black "Fransson, Jorgen"]
[Result "0-1"]
[TimeControl "15 minutes + 5 seconds per move from move one (Round 1 - 4) / 90 minutes + 30 seconds per move from move one (Round 5 - 8)"]
[WhiteFideId "1761498"]
[BlackFideId "1701827"]
[WhiteElo "1780"]
[BlackElo "2134"]

1. e4 {[%clk 01:30:56]} {[%emt 00:00:03]} c5 {[%clk 01:30:51]} {[%emt
00:00:09]} 2. Nf3 {[%clk 01:31:23]} {[%emt 00:00:04]} g6 {[%clk 01:31:13]}
{[%emt 00:00:08]} 3. d4 {[%clk 01:31:49]} {[%emt 00:00:04]} cxd4 {[%clk
01:31:37]} {[%emt 00:00:06]} 4. Nxd4 {[%clk 01:32:14]} {[%emt 00:00:06]} Bg7
{[%clk 01:32:01]} {[%emt 00:00:06]} 5. Nc3 {[%clk 01:32:39]} {[%emt 00:00:05]}
Nc6 {[%clk 01:32:23]} {[%emt 00:00:08]} 6. Be3 {[%clk 01:33:04]} {[%emt
00:00:05]} Nf6 {[%clk 01:32:46]} {[%emt 00:00:06]} 7. Bc4 {[%clk 01:33:29]}
{[%emt 00:00:06]} O-O {[%clk 01:32:10]} {[%emt 00:01:06]} 8. Bb3 {[%clk
01:33:39]} {[%emt 00:00:19]} Qc7 {[%clk 01:32:30]} {[%emt 00:00:09]} 9. f3
{[%clk 01:33:39]} {[%emt 00:00:31]} a6 {[%clk 01:32:43]} {[%emt 00:00:17]} 10.
Qd2 {[%clk 01:33:55]} {[%emt 00:00:14]} b5 {[%clk 01:33:06]} {[%emt 00:00:08]}
11. O-O-O {[%clk 01:33:38]} {[%emt 00:00:47]} Bb7 {[%clk 01:33:22]} {[%emt
00:00:14]} 12. Kb1 {[%clk 01:32:51]} {[%emt 00:01:17]} Na5 {[%clk 01:26:55]}
{[%emt 00:06:55]} 13. h4 {[%clk 01:29:58]} {[%emt 00:03:24]} h5 {[%clk
01:21:15]} {[%emt 00:06:10]} 14. g4 {[%clk 01:25:05]} {[%emt 00:05:24]} e6
{[%clk 01:16:39]} {[%emt 00:05:05]} 15. gxh5 {[%clk 01:15:11]} {[%emt
00:10:24]} Nxh5 {[%clk 01:16:43]} {[%emt 00:00:25]} 16. Bh6 {[%clk 01:14:08]}
{[%emt 00:01:34]} Bxh6 {[%clk 01:11:46]} {[%emt 00:05:27]} 17. Qxh6 {[%clk
01:14:35]} {[%emt 00:00:04]} Qf4 {[%clk 01:12:02]} {[%emt 00:00:14]} 18. Nf5
{[%clk 01:11:22]} {[%emt 00:03:44]} Qxh6 {[%clk 01:10:25]} {[%emt 00:02:07]} 19.
Nxh6+ {[%clk 01:11:43]} {[%emt 00:00:09]} Kg7 {[%clk 01:10:43]} {[%emt
00:00:12]} 20. Ng4 {[%clk 01:12:12]} {[%emt 00:00:01]} d5 {[%clk 00:58:17]}
{[%emt 00:12:56]} 21. exd5 {[%clk 00:57:29]} {[%emt 00:15:13]} b4 {[%clk
00:57:19]} {[%emt 00:01:28]} 22. Ne4 {[%clk 00:52:09]} {[%emt 00:05:51]} Nxb3
{[%clk 00:57:02]} {[%emt 00:00:47]} 23. axb3 {[%clk 00:52:17]} {[%emt
00:00:22]} Bxd5 {[%clk 00:57:20]} {[%emt 00:00:12]} 24. Ne3 {[%clk 00:52:22]}
{[%emt 00:00:25]} Bxe4 {[%clk 00:50:46]} {[%emt 00:07:04]} 25. fxe4 {[%clk
00:52:51]} {[%emt 00:00:01]} Rad8 {[%clk 00:49:17]} {[%emt 00:01:58]} 26. e5
{[%clk 00:51:05]} {[%emt 00:02:17]} Ng3 {[%clk 00:40:42]} {[%emt 00:09:03]} 27.
Rhg1 {[%clk 00:50:35]} {[%emt 00:01:01]} Nf5 {[%clk 00:40:55]} {[%emt
00:00:16]} 28. Nxf5+ {[%clk 00:50:37]} {[%emt 00:00:29]} exf5 {[%clk 00:41:18]}
{[%emt 00:00:07]} 29. Rdf1 {[%clk 00:42:35]} {[%emt 00:08:32]} Kh6 {[%clk
00:37:17]} {[%emt 00:04:30]} 30. h5 {[%clk 00:35:33]} {[%emt 00:07:33]} Kxh5
{[%clk 00:34:14]} {[%emt 00:03:33]} 31. Rh1+ {[%clk 00:35:49]} {[%emt
00:00:14]} Kg5 {[%clk 00:34:39]} {[%emt 00:00:05]} 32. Rhg1+ {[%clk 00:36:15]}
{[%emt 00:00:05]} Kh6 {[%clk 00:35:01]} {[%emt 00:00:08]} 33. Rh1+ {[%clk
00:36:41]} {[%emt 00:00:03]} Kg7 {[%clk 00:35:23]} {[%emt 00:00:07]} 34. Rhg1
{[%clk 00:37:10]} {[%emt 00:00:02]} Rfe8 {[%clk 00:34:02]} {[%emt 00:01:51]} 35.
Rxf5 {[%clk 00:36:45]} {[%emt 00:00:55]} Rd5 {[%clk 00:34:17]} {[%emt
00:00:14]} 36. Rf6 {[%clk 00:34:42]} {[%emt 00:02:33]} Rdxe5 {[%clk 00:31:39]}
{[%emt 00:03:08]} 37. Rxa6 {[%clk 00:35:10]} {[%emt 00:00:03]} Re1+ {[%clk
00:31:57]} {[%emt 00:00:11]} 38. Rxe1 {[%clk 00:35:39]} {[%emt 00:00:01]} Rxe1+
{[%clk 00:32:18]} {[%emt 00:00:09]} 39. Ka2 {[%clk 00:36:06]} {[%emt 00:00:03]}
g5 {[%clk 00:32:36]} {[%emt 00:00:12]} 40. Ra5 {[%clk 00:31:26]} {[%emt
00:05:10]} Kg6 {[%clk 00:31:53]} {[%emt 00:01:12]} 41. c4 {[%clk 00:31:10]}
{[%emt 00:00:48]} g4 {[%clk 00:31:38]} {[%emt 00:00:44]} 42. c5 {[%clk
00:28:16]} {[%emt 00:03:24]} g3 {[%clk 00:27:33]} {[%emt 00:04:35]} 43. Ra8
{[%clk 00:28:36]} {[%emt 00:00:11]} Kg7 {[%clk 00:27:15]} {[%emt 00:00:48]} 44.
c6 {[%clk 00:29:04]} {[%emt 00:00:02]} g2 {[%clk 00:27:25]} {[%emt 00:00:19]}
45. c7 {[%clk 00:29:24]} {[%emt 00:00:11]} Rc1 {[%clk 00:13:16]} {[%emt
00:14:38]} 46. c8=Q {[%clk 00:29:31]} {[%emt 00:00:24]} Rxc8 {[%clk 00:13:37]}
{[%emt 00:00:09]} 47. Rxc8 {[%clk 00:29:57]} {[%emt 00:00:04]} f5 {[%clk
00:13:07]} {[%emt 00:01:00]} 48. Rc2 {[%clk 00:28:09]} {[%emt 00:02:17]} g1=Q
{[%clk 00:13:24]} {[%emt 00:00:14]} 49. Rc7+ {[%clk 00:28:33]} {[%emt
00:00:06]} Kf6 {[%clk 00:13:09]} {[%emt 00:00:44]} 50. Rf7+ {[%clk 00:28:49]}
{[%emt 00:00:14]} Ke6 {[%clk 00:12:37]} {[%emt 00:01:02]} 51. Rf6+ {[%clk
00:29:12]} {[%emt 00:00:07]} Kd7 {[%clk 00:12:40]} {[%emt 00:00:26]} 52. Rd6+
{[%clk 00:28:51]} {[%emt 00:00:51]} Kc7 {[%clk 00:12:59]} {[%emt 00:00:11]} 53.
Rd7+ {[%clk 00:28:08]} {[%emt 00:01:14]} Kc6 {[%clk 00:12:56]} {[%emt
00:00:33]} 54. Rc7+ {[%clk 00:19:07]} {[%emt 00:09:33]} Kb5 {[%clk 00:13:18]}
0-1

[Event "Elite Hotels Open 2024"]
[Site "Elite Stadshotellet, Kungsgatan 6, Vaxjo, Sweden"]
[Date "2024.02.10"]
[Round "5.16"]
[White "Banerjee, Aryan"]
[Black "Nilsson, Eskil"]
[Result "1/2-1/2"]
[TimeControl "15 minutes + 5 seconds per move from move one (Round 1 - 4) / 90 minutes + 30 seconds per move from move one (Round 5 - 8)"]
[WhiteFideId "1765035"]
[BlackFideId "1716220"]
[WhiteElo "1752"]
[BlackElo "2117"]

1. Nf3 {[%clk 01:29:38]} {[%emt 00:01:19]} Nf6 {[%clk 01:30:50]} {[%emt
00:00:11]} 2. g3 {[%clk 01:30:02]} {[%emt 00:00:07]} g6 {[%clk 01:31:13]}
{[%emt 00:00:07]} 3. Bg2 {[%clk 01:30:28]} {[%emt 00:00:03]} Bg7 {[%clk
01:31:37]} {[%emt 00:00:06]} 4. O-O {[%clk 01:30:52]} {[%emt 00:00:06]} c5
{[%clk 01:32:04]} {[%emt 00:00:03]} 5. c4 {[%clk 01:31:11]} {[%emt 00:00:11]}
O-O {[%clk 01:32:18]} {[%emt 00:00:15]} 6. Nc3 {[%clk 01:31:38]} {[%emt
00:00:04]} Nc6 {[%clk 01:32:40]} {[%emt 00:00:09]} 7. d4 {[%clk 01:32:03]}
{[%emt 00:00:05]} d6 {[%clk 01:33:03]} {[%emt 00:00:07]} 8. dxc5 {[%clk
01:23:43]} {[%emt 00:08:50]} dxc5 {[%clk 01:33:24]} {[%emt 00:00:08]} 9. Be3
{[%clk 01:24:06]} {[%emt 00:00:06]} Be6 {[%clk 01:33:48]} {[%emt 00:00:08]} 10.
Rc1 {[%clk 01:06:19]} {[%emt 00:18:16]} Qa5 {[%clk 01:28:26]} {[%emt 00:05:53]}
11. Qb3 {[%clk 01:02:15]} {[%emt 00:04:34]} Qa6 {[%clk 01:00:55]} {[%emt
00:28:02]} 12. Na4 {[%clk 00:37:27]} {[%emt 00:25:17]} Na5 {[%clk 00:55:33]}
{[%emt 00:05:52]} 13. Qb5 {[%clk 00:36:26]} {[%emt 00:01:31]} Qxb5 {[%clk
00:52:15]} {[%emt 00:03:48]} 14. cxb5 {[%clk 00:36:15]} {[%emt 00:00:41]} b6
{[%clk 00:50:26]} {[%emt 00:02:19]} 15. b3 {[%clk 00:29:48]} {[%emt 00:06:58]}
Rad8 {[%clk 00:48:45]} {[%emt 00:02:10]} 16. Rfd1 {[%clk 00:22:00]} {[%emt
00:08:19]} Nb7 {[%clk 00:46:44]} {[%emt 00:02:28]} 17. Ne5 {[%clk 00:21:48]}
{[%emt 00:00:45]} Rxd1+ {[%clk 00:39:25]} {[%emt 00:07:49]} 18. Rxd1 {[%clk
00:22:03]} {[%emt 00:00:14]} Nd6 {[%clk 00:39:17]} {[%emt 00:00:38]} 19. Bc6
{[%clk 00:18:04]} {[%emt 00:04:30]} Ng4 {[%clk 00:37:37]} {[%emt 00:02:09]} 20.
Nxg4 {[%clk 00:17:10]} {[%emt 00:01:25]} Bxg4 {[%clk 00:37:59]} {[%emt
00:00:08]} 21. f3 {[%clk 00:16:54]} {[%emt 00:00:47]} Be6 {[%clk 00:37:26]}
{[%emt 00:01:03]} 22. Bf4 {[%clk 00:15:38]} {[%emt 00:01:47]} Nf5 {[%clk
00:36:02]} {[%emt 00:01:54]} 23. e3 {[%clk 00:15:45]} {[%emt 00:00:22]} c4
{[%clk 00:30:51]} {[%emt 00:05:41]} 24. bxc4 {[%clk 00:14:11]} {[%emt
00:02:05]} Bxc4 {[%clk 00:30:04]} {[%emt 00:01:16]} 25. g4 {[%clk 00:13:59]}
{[%emt 00:00:42]} Nd6 {[%clk 00:21:57]} {[%emt 00:08:38]} 26. Bxd6 {[%clk
00:14:06]} {[%emt 00:00:23]} exd6 {[%clk 00:22:22]} {[%emt 00:00:05]} 27. Rxd6
{[%clk 00:13:55]} {[%emt 00:00:41]} Be6 {[%clk 00:19:37]} {[%emt 00:03:15]} 28.
Rd3 {[%clk 00:10:34]} {[%emt 00:03:50]} Bf6 {[%clk 00:19:32]} {[%emt 00:00:35]}
29. Kf2 {[%clk 00:07:51]} {[%emt 00:03:14]} h5 {[%clk 00:19:03]} {[%emt
00:00:59]} 30. h3 {[%clk 00:06:30]} {[%emt 00:01:52]} hxg4 {[%clk 00:19:26]}
{[%emt 00:00:07]} 31. hxg4 {[%clk 00:06:53]} {[%emt 00:00:07]} Kg7 {[%clk
00:17:59]} {[%emt 00:01:57]} 32. Kg3 {[%clk 00:05:52]} {[%emt 00:01:31]} Rh8
{[%clk 00:16:12]} {[%emt 00:02:16]} 33. Kg2 {[%clk 00:04:08]} {[%emt 00:02:14]}
Be5 {[%clk 00:14:36]} {[%emt 00:02:06]} 34. f4 {[%clk 00:04:29]} {[%emt
00:00:10]} Bb8 {[%clk 00:14:49]} {[%emt 00:00:17]} 35. Nc3 {[%clk 00:03:13]}
{[%emt 00:01:46]} Bxg4 {[%clk 00:14:41]} {[%emt 00:00:38]} 36. Nd5 {[%clk
00:02:16]} {[%emt 00:01:28]} Bh3+ {[%clk 00:11:59]} {[%emt 00:03:11]} 37. Kg1
{[%clk 00:02:12]} {[%emt 00:00:34]} Rd8 {[%clk 00:11:07]} {[%emt 00:01:22]} 38.
Nb4 {[%clk 00:02:13]} {[%emt 00:00:30]} Rxd3 {[%clk 00:09:19]} {[%emt
00:02:19]} 39. Nxd3 {[%clk 00:02:36]} {[%emt 00:00:07]} Be6 {[%clk 00:09:17]}
{[%emt 00:00:31]} 1/2-1/2

[Event "Elite Hotels Open 2024"]
[Site "Elite Stadshotellet, Kungsgatan 6, Vaxjo, Sweden"]
[Date "2024.02.10"]
[Round "6.1"]
[White "Jepson, Christian"]
[Black "Hillarp, Tiger"]
[Result "1/2-1/2"]
[TimeControl "15 minutes + 5 seconds per move from move one (Round 1 - 4) / 90 minutes + 30 seconds per move from move one (Round 5 - 8)"]
[WhiteTitle "IM"]
[BlackTitle "GM"]
[WhiteFideId "1701185"]
[BlackFideId "1700812"]
[WhiteElo "2386"]
[BlackElo "2476"]

1. c4 {[%clk 01:30:58]} {[%emt 00:00:02]} e6 {[%clk 01:28:26]} {[%emt
00:02:34]} 2. Nf3 {[%clk 01:30:20]} {[%emt 00:01:08]} d5 {[%clk 01:28:32]}
{[%emt 00:00:24]} 3. d4 {[%clk 01:30:38]} {[%emt 00:00:12]} Nf6 {[%clk
01:28:44]} {[%emt 00:00:18]} 4. Nc3 {[%clk 01:30:43]} {[%emt 00:00:25]} c6
{[%clk 01:28:46]} {[%emt 00:00:29]} 5. Bg5 {[%clk 01:30:27]} {[%emt 00:00:45]}
Nbd7 {[%clk 01:29:04]} {[%emt 00:00:13]} 6. e3 {[%clk 01:30:37]} {[%emt
00:00:19]} h6 {[%clk 01:29:27]} {[%emt 00:00:06]} 7. Bh4 {[%clk 01:30:40]}
{[%emt 00:00:28]} g5 {[%clk 01:29:49]} {[%emt 00:00:08]} 8. Bg3 {[%clk
01:31:06]} {[%emt 00:00:04]} Nh5 {[%clk 01:30:11]} {[%emt 00:00:08]} 9. Qc2
{[%clk 01:29:07]} {[%emt 00:02:29]} Nxg3 {[%clk 01:28:57]} {[%emt 00:01:44]} 10.
hxg3 {[%clk 01:29:31]} {[%emt 00:00:05]} Bg7 {[%clk 01:29:17]} {[%emt
00:00:10]} 11. O-O-O {[%clk 01:28:59]} {[%emt 00:01:03]} Qe7 {[%clk 01:22:22]}
{[%emt 00:07:25]} 12. e4 {[%clk 01:14:17]} {[%emt 00:15:11]} dxe4 {[%clk
01:14:41]} {[%emt 00:08:12]} 13. Qxe4 {[%clk 01:12:56]} {[%emt 00:01:51]} f5
{[%clk 01:01:16]} {[%emt 00:13:55]} 14. Qc2 {[%clk 01:08:24]} {[%emt 00:05:02]}
g4 {[%clk 00:56:56]} {[%emt 00:04:50]} 15. Nh4 {[%clk 01:07:50]} {[%emt
00:01:04]} Qg5+ {[%clk 00:54:18]} {[%emt 00:03:09]} 16. Kb1 {[%clk 01:08:05]}
{[%emt 00:00:15]} O-O {[%clk 00:54:39]} {[%emt 00:00:08]} 17. Ne2 {[%clk
00:42:33]} {[%emt 00:26:02]} Rd8 {[%clk 00:45:33]} {[%emt 00:09:37]} 18. f4
{[%clk 00:13:31]} {[%emt 00:29:32]} Qf6 {[%clk 00:43:02]} {[%emt 00:03:01]} 19.
Nc3 {[%clk 00:12:17]} {[%emt 00:01:44]} b5 {[%clk 00:29:37]} {[%emt 00:13:55]}
20. cxb5 {[%clk 00:08:42]} {[%emt 00:04:06]} cxb5 {[%clk 00:29:54]} {[%emt
00:00:12]} 21. Bxb5 {[%clk 00:08:35]} {[%emt 00:00:37]} Nb6 {[%clk 00:29:30]}
{[%emt 00:00:54]} 22. Qe2 {[%clk 00:05:17]} {[%emt 00:03:48]} Qf7 {[%clk
00:21:27]} {[%emt 00:08:33]} 23. Rhe1 {[%clk 00:04:18]} {[%emt 00:01:28]} Rxd4
{[%clk 00:20:30]} {[%emt 00:01:27]} 24. Bc6 {[%clk 00:03:41]} {[%emt 00:01:08]}
Rb8 {[%clk 00:20:41]} {[%emt 00:00:19]} 25. Rxd4 {[%clk 00:01:45]} {[%emt
00:02:26]} Bxd4 {[%clk 00:21:04]} {[%emt 00:00:07]} 26. Qd3 {[%clk 00:01:31]}
{[%emt 00:00:43]} Qf6 {[%clk 00:15:18]} {[%emt 00:06:14]} 27. Nb5 {[%clk
00:00:59]} {[%emt 00:01:04]} Bc5 {[%clk 00:09:10]} {[%emt 00:06:37]} 28. Qc2
{[%clk 00:00:40]} {[%emt 00:00:50]} Bf8 {[%clk 00:09:09]} {[%emt 00:00:31]} 29.
Re5 {[%clk 00:00:39]} {[%emt 00:00:31]} Nd7 {[%clk 00:02:05]} {[%emt 00:07:33]}
30. Re2 {[%clk 00:00:55]} {[%emt 00:00:15]} Bg7 {[%clk 00:01:43]} {[%emt
00:00:52]} 31. Nc7 {[%clk 00:00:43]} {[%emt 00:00:42]} Nf8 {[%clk 00:01:46]}
{[%emt 00:00:27]} 32. Ne8 {[%clk 00:01:07]} {[%emt 00:00:06]} Qd4 {[%clk
00:01:59]} {[%emt 00:00:16]} 33. Nxg7 {[%clk 00:01:16]} {[%emt 00:00:21]} Qg1+
{[%clk 00:01:49]} {[%emt 00:00:40]} 34. Qc1 {[%clk 00:01:38]} {[%emt 00:00:07]}
Qxc1+ {[%clk 00:02:14]} {[%emt 00:00:05]} 35. Kxc1 {[%clk 00:02:06]} {[%emt
00:00:02]} Kxg7 {[%clk 00:02:33]} {[%emt 00:00:11]} 36. Rc2 {[%clk 00:01:44]}
{[%emt 00:00:53]} Kf6 {[%clk 00:02:10]} {[%emt 00:00:53]} 37. a3 {[%clk
00:01:10]} {[%emt 00:01:04]} Bb7 {[%clk 00:01:25]} {[%emt 00:01:15]} 38. b4
{[%clk 00:01:21]} {[%emt 00:00:19]} Bxc6 {[%clk 00:00:38]} {[%emt 00:01:17]} 39.
Rxc6 {[%clk 00:01:48]} {[%emt 00:00:03]} Rb7 {[%clk 00:00:37]} {[%emt
00:00:31]} 40. Rc8 {[%clk 00:01:31]} {[%emt 00:00:46]} Kf7 {[%clk 00:00:35]}
{[%emt 00:00:33]} 41. Kc2 {[%clk 00:01:54]} {[%emt 00:00:07]} a5 {[%clk
00:00:35]} {[%emt 00:00:30]} 42. bxa5 {[%clk 00:01:52]} {[%emt 00:00:32]} Ra7
{[%clk 00:00:58]} {[%emt 00:00:07]} 43. Kb3 {[%clk 00:00:51]} {[%emt 00:01:31]}
Rxa5 {[%clk 00:01:18]} {[%emt 00:00:10]} 44. Rc7+ {[%clk 00:01:05]} {[%emt
00:00:17]} Kf6 {[%clk 00:01:20]} {[%emt 00:00:27]} 45. a4 {[%clk 00:01:07]}
{[%emt 00:00:28]} Rd5 {[%clk 00:00:57]} {[%emt 00:00:52]} 46. Kb4 {[%clk
00:01:23]} {[%emt 00:00:14]} Nd7 {[%clk 00:00:37]} {[%emt 00:00:50]} 47. a5
{[%clk 00:01:33]} {[%emt 00:00:21]} Nb8 {[%clk 00:00:55]} {[%emt 00:00:12]} 48.
Ka4 {[%clk 00:01:39]} {[%emt 00:00:24]} h5 {[%clk 00:00:37]} {[%emt 00:00:47]}
49. Rc8 {[%clk 00:01:44]} {[%emt 00:00:26]} Na6 {[%clk 00:00:37]} {[%emt
00:00:30]} 50. Ra8 {[%clk 00:00:38]} {[%emt 00:01:36]} Rd4+ {[%clk 00:00:44]}
{[%emt 00:00:23]} 51. Kb3 {[%clk 00:00:39]} {[%emt 00:00:29]} Nc5+ {[%clk
00:00:55]} {[%emt 00:00:18]} 52. Kc3 {[%clk 00:01:01]} {[%emt 00:00:08]} Ra4
{[%clk 00:00:54]} {[%emt 00:00:31]} 53. Ra7 {[%clk 00:00:56]} {[%emt 00:00:35]}
Ne4+ {[%clk 00:00:43]} {[%emt 00:00:42]} 54. Kb3 {[%clk 00:01:22]} {[%emt
00:00:04]} Nc5+ {[%clk 00:00:52]} {[%emt 00:00:21]} 55. Kc3 {[%clk 00:01:22]}
{[%emt 00:00:30]} Ne4+ {[%clk 00:00:48]} {[%emt 00:00:34]} 56. Kb3 {[%clk
00:01:45]} {[%emt 00:00:07]} Nc5+ {[%clk 00:00:45]} {[%emt 00:00:33]} 1/2-1/2

[Event "Elite Hotels Open 2024"]
[Site "Elite Stadshotellet, Kungsgatan 6, Vaxjo, Sweden"]
[Date "2024.02.10"]
[Round "6.2"]
[White "Lindberg, Bengt"]
[Black "Pantzar, Milton"]
[Result "1/2-1/2"]
[TimeControl "15 minutes + 5 seconds per move from move one (Round 1 - 4) / 90 minutes + 30 seconds per move from move one (Round 5 - 8)"]
[WhiteTitle "IM"]
[BlackTitle "IM"]
[WhiteFideId "1700359"]
[BlackFideId "1721003"]
[WhiteElo "2331"]
[BlackElo "2468"]

1. e4 {[%clk 01:30:55]} {[%emt 00:00:02]} c6 {[%clk 01:30:52]} {[%emt
00:00:10]} 2. d4 {[%clk 01:31:04]} {[%emt 00:00:21]} d5 {[%clk 01:31:13]}
{[%emt 00:00:09]} 3. Nc3 {[%clk 01:31:04]} {[%emt 00:00:30]} dxe4 {[%clk
01:31:31]} {[%emt 00:00:13]} 4. Nxe4 {[%clk 01:31:23]} {[%emt 00:00:11]} Nf6
{[%clk 01:31:55]} {[%emt 00:00:06]} 5. Nxf6+ {[%clk 01:31:13]} {[%emt
00:00:40]} exf6 {[%clk 01:32:17]} {[%emt 00:00:08]} 6. Bc4 {[%clk 01:31:05]}
{[%emt 00:00:37]} Na6 {[%clk 01:29:17]} {[%emt 00:03:32]} 7. c3 {[%clk
01:21:19]} {[%emt 00:10:13]} Nc7 {[%clk 01:27:52]} {[%emt 00:01:58]} 8. Ne2
{[%clk 01:19:46]} {[%emt 00:02:03]} Bd6 {[%clk 01:25:10]} {[%emt 00:03:12]} 9.
Bf4 {[%clk 01:17:20]} {[%emt 00:02:55]} O-O {[%clk 01:21:20]} {[%emt 00:04:21]}
10. O-O {[%clk 01:16:29]} {[%emt 00:01:20]} Be6 {[%clk 01:12:09]} {[%emt
00:09:42]} 11. Bb3 {[%clk 01:08:33]} {[%emt 00:08:25]} Re8 {[%clk 01:10:39]}
{[%emt 00:02:01]} 12. Bg3 {[%clk 01:04:18]} {[%emt 00:04:43]} f5 {[%clk
01:01:05]} {[%emt 00:10:05]} 13. Qd2 {[%clk 00:57:17]} {[%emt 00:07:30]} Bxb3
{[%clk 00:45:33]} {[%emt 00:16:04]} 14. Bxd6 {[%clk 00:55:53]} {[%emt
00:01:54]} Qxd6 {[%clk 00:41:41]} {[%emt 00:04:22]} 15. axb3 {[%clk 00:56:15]}
{[%emt 00:00:08]} g6 {[%clk 00:39:27]} {[%emt 00:02:44]} 16. Nf4 {[%clk
00:53:02]} {[%emt 00:03:43]} c5 {[%clk 00:38:22]} {[%emt 00:01:36]} 17. d5
{[%clk 00:43:33]} {[%emt 00:09:58]} Nb5 {[%clk 00:16:07]} {[%emt 00:22:44]} 18.
g3 {[%clk 00:42:25]} {[%emt 00:01:38]} Qb6 {[%clk 00:13:50]} {[%emt 00:02:48]}
19. Rfe1 {[%clk 00:35:56]} {[%emt 00:06:59]} Nd6 {[%clk 00:12:39]} {[%emt
00:01:41]} 20. Qc2 {[%clk 00:30:11]} {[%emt 00:06:14]} Re4 {[%clk 00:12:43]}
{[%emt 00:00:26]} 21. Rxe4 {[%clk 00:26:52]} {[%emt 00:03:49]} fxe4 {[%clk
00:13:03]} {[%emt 00:00:10]} 22. Re1 {[%clk 00:25:01]} {[%emt 00:02:20]} Qd8
{[%clk 00:10:11]} {[%emt 00:03:24]} 23. c4 {[%clk 00:23:46]} {[%emt 00:01:45]}
b5 {[%clk 00:08:45]} {[%emt 00:01:56]} 24. Qc3 {[%clk 00:22:26]} {[%emt
00:01:49]} Rb8 {[%clk 00:04:38]} {[%emt 00:04:38]} 25. h4 {[%clk 00:20:49]}
{[%emt 00:02:06]} h5 {[%clk 00:03:08]} {[%emt 00:02:00]} 26. Ra1 {[%clk
00:18:27]} {[%emt 00:02:52]} Qb6 {[%clk 00:01:32]} {[%emt 00:02:07]} 27. cxb5
{[%clk 00:16:57]} {[%emt 00:02:00]} Nxb5 {[%clk 00:01:33]} {[%emt 00:00:29]} 28.
Qe5 {[%clk 00:17:03]} {[%emt 00:00:23]} Nd6 {[%clk 00:01:17]} {[%emt 00:00:46]}
29. Re1 {[%clk 00:14:05]} {[%emt 00:03:27]} Re8 {[%clk 00:01:25]} {[%emt
00:00:24]} 30. Qf6 {[%clk 00:12:41]} {[%emt 00:01:53]} Qd8 {[%clk 00:01:31]}
{[%emt 00:00:25]} 31. Qc3 {[%clk 00:12:53]} {[%emt 00:00:17]} Qb6 {[%clk
00:00:51]} {[%emt 00:01:11]} 32. Qf6 {[%clk 00:11:02]} {[%emt 00:02:21]} Nf5
{[%clk 00:00:54]} {[%emt 00:00:28]} 33. Nxh5 {[%clk 00:10:03]} {[%emt
00:01:28]} Rb8 {[%clk 00:00:32]} {[%emt 00:00:52]} 34. Qe5 {[%clk 00:09:21]}
{[%emt 00:01:11]} Qd6 {[%clk 00:00:32]} {[%emt 00:00:31]} 35. Nf6+ {[%clk
00:05:26]} {[%emt 00:04:24]} Kh8 {[%clk 00:01:01]} {[%emt 00:00:02]} 36. Qc3
{[%clk 00:05:44]} {[%emt 00:00:11]} Nd4 {[%clk 00:01:10]} {[%emt 00:00:22]} 37.
Nxe4 {[%clk 00:06:04]} {[%emt 00:00:09]} Qxd5 {[%clk 00:01:04]} {[%emt
00:00:37]} 38. Qe3 {[%clk 00:03:03]} {[%emt 00:03:31]} Kg7 {[%clk 00:01:08]}
{[%emt 00:00:27]} 39. Qf4 {[%clk 00:03:09]} {[%emt 00:00:23]} Re8 {[%clk
00:00:42]} {[%emt 00:00:56]} 40. Qf6+ {[%clk 00:02:45]} {[%emt 00:00:54]} Kg8
{[%clk 00:01:05]} {[%emt 00:00:07]} 41. Qf4 {[%clk 00:03:04]} {[%emt 00:00:10]}
Kg7 {[%clk 00:01:09]} {[%emt 00:00:27]} 42. Qf6+ {[%clk 00:03:23]} {[%emt
00:00:10]} Kg8 {[%clk 00:01:38]} 43. Qf4 {[%clk 00:03:25]} {[%emt 00:00:29]}
Kg7 {[%clk 00:00:54]} 1/2-1/2